[Event "Championnat d'Europe Rapide"]
[Date "2024.12.07"]
[White "Bernadskiy, Vitaliy"]
[Black "Veleski, Robert"]
[WhiteElo "2546"]
[BlackElo "2093"]
[Round "4.35"]
[Result "1-0"]
[TimeControl "900+10"]

1. Nf3 {[%emt 00:00:44] [%clk 00:14:36]} g6 {[%emt 00:07:08] [%clk 00:08:12]} 2.
e4 {[%emt 00:00:03] [%clk 00:14:43]} Bg7 {[%emt 00:00:01] [%clk 00:08:21]} 3. d4
{[%emt 00:00:02] [%clk 00:14:52]} c5 {[%emt 00:00:05] [%clk 00:08:26]} 4. c3
{[%emt 00:00:10] [%clk 00:14:52]} cxd4 {[%emt 00:00:07] [%clk 00:08:29]} 5. cxd4
{[%emt 00:00:02] [%clk 00:15:00]} d5 {[%emt 00:00:03] [%clk 00:08:36]} 6. e5
{[%emt 00:00:01] [%clk 00:15:08]} Nc6 {[%emt 00:00:07] [%clk 00:08:39]} 7. Bb5
{[%emt 00:00:12] [%clk 00:15:05]} h5 {[%emt 00:00:14] [%clk 00:08:35]} 8. Nc3
{[%emt 00:00:07] [%clk 00:15:09]} Nh6 {[%emt 00:00:01] [%clk 00:08:44]} 9. h3
{[%emt 00:00:52] [%clk 00:14:28]} O-O {[%emt 00:00:07] [%clk 00:08:47]} 10. O-O
{[%emt 00:00:43] [%clk 00:13:55]} Bf5 {[%emt 00:00:21] [%clk 00:08:35]} 11. Be3
{[%emt 00:00:08] [%clk 00:13:58]} Be6 {[%emt 00:00:13] [%clk 00:08:32]} 12. Bxc6
{[%emt 00:00:36] [%clk 00:13:33]} bxc6 {[%emt 00:00:02] [%clk 00:08:40]} 13. Na4
{[%emt 00:00:01] [%clk 00:13:41]} Rb8 {[%emt 00:00:09] [%clk 00:08:42]} 14. Nc5
{[%emt 00:00:06] [%clk 00:13:45]} Nf5 {[%emt 00:00:25] [%clk 00:08:27]} 15. Bc1
{[%emt 00:00:32] [%clk 00:13:22]} Bc8 {[%emt 00:00:05] [%clk 00:08:32]} 16. Re1
{[%emt 00:00:10] [%clk 00:13:22]} Qa5 {[%emt 00:00:15] [%clk 00:08:27]} 17. Bd2
{[%emt 00:00:26] [%clk 00:13:06]} Qc7 {[%emt 00:00:12] [%clk 00:08:25]} 18. Qc1
{[%emt 00:00:28] [%clk 00:12:48]} e6 {[%emt 00:00:08] [%clk 00:08:28]} 19. g4
{[%emt 00:00:04] [%clk 00:12:54]} hxg4 {[%emt 00:00:03] [%clk 00:08:35]} 20.
hxg4 {[%emt 00:00:02] [%clk 00:13:02]} Ne7 {[%emt 00:00:04] [%clk 00:08:42]} 21.
Kg2 {[%emt 00:00:05] [%clk 00:13:07]} Qb6 {[%emt 00:00:22] [%clk 00:08:30]} 22.
Bg5 {[%emt 00:00:20] [%clk 00:12:56]} Re8 {[%emt 00:00:08] [%clk 00:08:32]} 23.
Bf6 {[%emt 00:00:15] [%clk 00:12:51]} Qc7 {[%emt 00:00:15] [%clk 00:08:28]} 24.
Rh1 {[%emt 00:00:08] [%clk 00:12:53]} Bxf6 {[%emt 00:03:17] [%clk 00:05:21]} 25.
exf6 {[%emt 00:00:03] [%clk 00:13:00]} Nf5 {[%emt 00:00:06] [%clk 00:05:25]} 26.
gxf5 {[%emt 00:00:06] [%clk 00:13:04]} 1-0

[Site "Europe Echecs"]

[Event "Championnat d'Europe Rapide"]
[Date "2024.12.07"]
[White "Kiratzopoulos, Efthimios"]
[Black "Mastrovasilis, Dimitrios"]
[WhiteElo "2193"]
[BlackElo "2537"]
[Round "4.36"]
[Result "0-1"]
[TimeControl "900+10"]

1. d4 {[%emt 00:00:31] [%clk 00:14:48]} d5 {[%emt 00:00:33] [%clk 00:14:47]} 2.
Nf3 {[%emt 00:00:05] [%clk 00:14:54]} Nf6 {[%emt 00:00:07] [%clk 00:14:50]} 3.
c3 {[%emt 00:00:37] [%clk 00:14:27]} c5 {[%emt 00:00:17] [%clk 00:14:43]} 4. Bf4
{[%emt 00:02:00] [%clk 00:12:36]} Nc6 {[%emt 00:00:32] [%clk 00:14:21]} 5. dxc5
{[%emt 00:01:18] [%clk 00:11:28]} e6 {[%emt 00:02:53] [%clk 00:11:39]} 6. b4
{[%emt 00:00:28] [%clk 00:11:09]} a5 {[%emt 00:00:03] [%clk 00:11:46]} 7. Qb3
{[%emt 00:03:23] [%clk 00:07:55]} Ne4 {[%emt 00:02:24] [%clk 00:09:33]} 8. Nbd2
{[%emt 00:01:49] [%clk 00:06:16]} axb4 {[%emt 00:01:09] [%clk 00:08:35]} 9. Nxe4
{[%emt 00:02:20] [%clk 00:04:07]} dxe4 {[%emt 00:00:22] [%clk 00:08:22]} 10. Rd1
{[%clk 00:04:16]} Qf6 {[%emt 00:00:55] [%clk 00:07:38]} 11. Bg5 {[%emt 00:01:06]
[%clk 00:03:20]} Qxc3+ {[%emt 00:00:03] [%clk 00:07:45]} 12. Nd2 {[%emt
00:00:22] [%clk 00:03:07]} Nd4 {[%emt 00:02:25] [%clk 00:05:30]} 13. Qxc3 {[%emt
00:00:48] [%clk 00:02:29]} bxc3 {[%emt 00:00:03] [%clk 00:05:37]} 14. e3 {[%emt
00:00:04] [%clk 00:02:36]} cxd2+ {[%emt 00:01:01] [%clk 00:04:47]} 15. Rxd2
{[%emt 00:00:01] [%clk 00:02:44]} Nc6 {[%emt 00:00:03] [%clk 00:04:54]} 0-1

[Site "Europe Echecs"]

[Event "Championnat d'Europe Rapide"]
[Date "2024.12.07"]
[White "Balinski, Damian"]
[Black "Smeets, Jan"]
[WhiteElo "2203"]
[BlackElo "2552"]
[Round "4.37"]
[Result "0-1"]
[TimeControl "900+10"]

1. d4 {[%emt 00:02:11] [%clk 00:13:09]} d5 {[%emt 00:00:02] [%clk 00:15:18]} 2.
c4 {[%emt 00:00:01] [%clk 00:13:18]} e6 {[%emt 00:00:01] [%clk 00:15:27]} 3. Nc3
{[%emt 00:00:01] [%clk 00:13:26]} a6 {[%emt 00:00:01] [%clk 00:15:36]} 4. cxd5
{[%emt 00:00:02] [%clk 00:13:34]} exd5 {[%emt 00:00:01] [%clk 00:15:45]} 5. Nf3
{[%emt 00:00:01] [%clk 00:13:43]} c6 {[%emt 00:00:01] [%clk 00:15:55]} 6. Qc2
{[%emt 00:00:31] [%clk 00:13:22]} Bd6 {[%emt 00:00:19] [%clk 00:15:46]} 7. e4
{[%emt 00:00:29] [%clk 00:13:03]} dxe4 {[%emt 00:00:05] [%clk 00:15:51]} 8. Nxe4
{[%emt 00:00:02] [%clk 00:13:11]} Nf6 {[%emt 00:00:03] [%clk 00:15:58]} 9. Bd3
{[%emt 00:00:48] [%clk 00:12:33]} Nxe4 {[%emt 00:01:08] [%clk 00:15:01]} 10.
Bxe4 {[%emt 00:00:02] [%clk 00:12:41]} Bb4+ {[%emt 00:00:02] [%clk 00:15:09]}
11. Kf1 {[%emt 00:01:40] [%clk 00:11:10]} h6 {[%emt 00:01:19] [%clk 00:14:01]}
12. h3 {[%emt 00:00:26] [%clk 00:10:53]} Nd7 {[%emt 00:01:30] [%clk 00:12:41]}
13. Bf4 {[%emt 00:00:43] [%clk 00:10:19]} O-O {[%emt 00:00:46] [%clk 00:12:06]}
14. a3 {[%emt 00:00:47] [%clk 00:09:42]} Ba5 {[%emt 00:00:19] [%clk 00:11:57]}
15. g4 {[%emt 00:00:58] [%clk 00:08:54]} Nf6 {[%emt 00:00:19] [%clk 00:11:48]}
16. Bd3 {[%emt 00:02:53] [%clk 00:06:11]} Nd5 {[%emt 00:01:00] [%clk 00:10:58]}
17. Be5 {[%emt 00:01:13]} Be6 {[%clk 00:10:30]} 18. g5 {[%emt 00:02:02] [%clk
00:03:54]} hxg5 {[%emt 00:00:44] [%clk 00:09:56]} 19. h4 {[%emt 00:00:22] [%clk
00:03:42]} f6 {[%emt 00:04:17] [%clk 00:05:50]} 20. hxg5 {[%emt 00:01:35] [%clk
00:02:16]} fxe5 {[%emt 00:00:04] [%clk 00:05:56]} 21. Bh7+ {[%emt 00:00:33]
[%clk 00:01:53]} Kf7 {[%clk 00:06:05]} 22. Nxe5+ {[%emt 00:00:02] [%clk
00:02:01]} Ke7 {[%emt 00:00:28] [%clk 00:05:48]} 23. Qc5+ {[%emt 00:00:09] [%clk
00:02:01]} Qd6 {[%emt 00:00:14] [%clk 00:05:44]} 24. Ng6+ {[%emt 00:01:07] [%clk
00:01:04]} Kd7 {[%emt 00:00:03] [%clk 00:05:51]} 25. Ne5+ {[%emt 00:00:01] [%clk
00:01:13]} Kc7 {[%emt 00:01:16] [%clk 00:04:46]} 26. Qxa5+ {[%emt 00:00:02]
[%clk 00:01:21]} Nb6 {[%emt 00:00:48] [%clk 00:04:08]} 27. Rd1 {[%emt 00:00:18]
[%clk 00:01:13]} Rf4 {[%emt 00:00:18] [%clk 00:04:00]} 28. Qc5 {[%emt 00:00:54]
[%clk 00:00:29]} Raf8 {[%emt 00:00:35] [%clk 00:03:35]} 29. Qxd6+ {[%emt
00:00:03] [%clk 00:00:36]} Kxd6 {[%emt 00:00:01] [%clk 00:03:44]} 30. Rh2 {[%emt
00:00:01] [%clk 00:00:45]} Nc4 {[%emt 00:00:19] [%clk 00:03:35]} 31. Nxc4+
{[%emt 00:00:20] [%clk 00:00:35]} Bxc4+ {[%emt 00:00:01] [%clk 00:03:44]} 32.
Kg1 {[%emt 00:00:10] [%clk 00:00:35]} Bd5 {[%emt 00:00:10] [%clk 00:03:44]} 33.
Bd3 {[%emt 00:00:36]} Bf3 {[%emt 00:00:40] [%clk 00:03:12]} 34. Re1 {[%emt
00:00:03] [%clk 00:00:18]} Rxd4 {[%emt 00:00:03] [%clk 00:03:19]} 35. Re3 {[%emt
00:00:11] [%clk 00:00:17]} Rg4+ {[%emt 00:00:02] [%clk 00:03:27]} 36. Kf1 {[%emt
00:00:02] [%clk 00:00:25]} Rxg5 {[%emt 00:00:01] [%clk 00:03:36]} 37. Rh4 {[%emt
00:00:15] [%clk 00:00:20]} Bd5 {[%emt 00:00:50] [%clk 00:02:55]} 38. Be4 {[%emt
00:00:13] [%clk 00:00:17]} Bc4+ {[%emt 00:01:08] [%clk 00:01:58]} 39. Ke1 {[%emt
00:00:01] [%clk 00:00:25]} Rg1+ {[%emt 00:00:08] [%clk 00:02:00]} 40. Kd2 {[%emt
00:00:10] [%clk 00:00:25]} Rxf2+ {[%emt 00:00:02] [%clk 00:02:09]} 41. Kc3
{[%emt 00:00:05] [%clk 00:00:30]} Rc1+ {[%emt 00:00:03] [%clk 00:02:16]} 42. Kb4
{[%emt 00:00:23] [%clk 00:00:17]} Rxb2+ {[%emt 00:00:02] [%clk 00:02:24]} 43.
Ka4 {[%emt 00:00:04] [%clk 00:00:23]} b6 {[%emt 00:00:23] [%clk 00:02:11]} 44.
Bd3 {[%emt 00:00:21] [%clk 00:00:13]} Bb5+ {[%emt 00:00:02] [%clk 00:02:19]} 0-1

[Site "Europe Echecs"]

[Event "Championnat d'Europe Rapide"]
[Date "2024.12.07"]
[White "Zajic, Milan"]
[Black "Sivan, Yaacov"]
[WhiteElo "2392"]
[BlackElo "2273"]
[Round "4.38"]
[Result "1-0"]
[TimeControl "900+10"]

1. e4 {[%emt 00:00:02] [%clk 00:15:19]} c5 {[%clk 00:15:18]} 2. Nf3 {[%emt
00:00:01] [%clk 00:15:27]} Nc6 {[%emt 00:00:02] [%clk 00:15:26]} 3. Bb5 {[%emt
00:00:03] [%clk 00:15:35]} g6 {[%emt 00:00:02] [%clk 00:15:33]} 4. O-O {[%emt
00:00:03] [%clk 00:15:42]} Bg7 {[%emt 00:00:03] [%clk 00:15:41]} 5. c3 {[%emt
00:00:02] [%clk 00:15:50]} Qb6 {[%emt 00:00:51] [%clk 00:15:00]} 6. Na3 {[%emt
00:00:46] [%clk 00:15:15]} a6 {[%emt 00:00:48] [%clk 00:14:22]} 7. Ba4 {[%emt
00:00:11] [%clk 00:15:14]} Qc7 {[%emt 00:00:37] [%clk 00:13:55]} 8. d4 {[%emt
00:00:04] [%clk 00:15:19]} b5 {[%emt 00:00:16] [%clk 00:13:49]} 9. Bc2 {[%emt
00:00:51] [%clk 00:14:38]} cxd4 {[%emt 00:01:18] [%clk 00:12:42]} 10. cxd4
{[%emt 00:00:02] [%clk 00:14:46]} Nf6 {[%emt 00:00:38] [%clk 00:12:13]} 11. e5
{[%emt 00:00:48] [%clk 00:14:07]} Nd5 {[%emt 00:00:46] [%clk 00:11:37]} 12. Be4
{[%emt 00:00:02] [%clk 00:14:16]} e6 {[%emt 00:00:58] [%clk 00:10:49]} 13. Bxd5
{[%emt 00:00:30] [%clk 00:13:56]} exd5 {[%emt 00:00:01] [%clk 00:10:58]} 14. Bf4
{[%emt 00:00:16] [%clk 00:13:50]} Nd8 {[%emt 00:00:43] [%clk 00:10:25]} 15. Rc1
{[%emt 00:01:16] [%clk 00:12:44]} Qb6 {[%emt 00:00:20] [%clk 00:10:15]} 16. Qd2
{[%emt 00:01:42] [%clk 00:11:12]} Ne6 {[%emt 00:00:10] [%clk 00:10:14]} 17. Nc2
{[%emt 00:00:53] [%clk 00:10:29]} a5 {[%emt 00:01:20] [%clk 00:09:05]} 18. Bh6
{[%emt 00:00:09] [%clk 00:10:30]} O-O {[%emt 00:00:24] [%clk 00:08:51]} 19. Bxg7
{[%emt 00:00:03] [%clk 00:10:37]} Kxg7 {[%emt 00:00:07] [%clk 00:08:54]} 20. Ne3
{[%emt 00:00:02] [%clk 00:10:46]} h5 {[%emt 00:05:31] [%clk 00:03:33]} 21. Nxd5
{[%emt 00:00:03] [%clk 00:10:53]} Qd8 {[%emt 00:00:02] [%clk 00:03:40]} 22. Nc3
{[%emt 00:03:37] [%clk 00:07:27]} d6 {[%emt 00:00:36] [%clk 00:03:13]} 23. exd6
{[%emt 00:00:48] [%clk 00:06:49]} Qxd6 {[%emt 00:01:14] [%clk 00:02:10]} 24. d5
{[%emt 00:00:44] [%clk 00:06:14]} Nf4 {[%emt 00:01:24] [%clk 00:00:56]} 25. Ne4
{[%emt 00:00:51] [%clk 00:05:33]} Qb8 {[%emt 00:00:01] [%clk 00:01:05]} 26. d6
{[%emt 00:00:36] [%clk 00:05:07]} Ne6 {[%emt 00:00:16] [%clk 00:01:00]} 27. Rfe1
{[%emt 00:00:56] [%clk 00:04:21]} Bd7 {[%emt 00:00:54] [%clk 00:00:16]} 28. Ne5
{[%emt 00:01:49] [%clk 00:02:42]} Ra7 {[%emt 00:00:02] [%clk 00:00:24]} 29. Rc7
{[%emt 00:01:21] [%clk 00:01:32]} Rd8 {[%emt 00:00:22] [%clk 00:00:12]} 30. Qc3
{[%emt 00:00:43] [%clk 00:00:58]} Kh6 {[%emt 00:00:02] [%clk 00:00:20]} 31.
Nxf7+ {[%emt 00:00:08] [%clk 00:01:00]} 1-0

[Site "Europe Echecs"]

[Event "Championnat d'Europe Rapide"]
[Date "2024.12.07"]
[White "Sramek, Vojtech"]
[Black "Dragnev, Valentin"]
[WhiteElo "2259"]
[BlackElo "2563"]
[Round "4.39"]
[Result "0-1"]
[TimeControl "900+10"]

1. e4 {[%emt 00:00:01] [%clk 00:15:17]} c6 {[%emt 00:00:06] [%clk 00:15:12]} 2.
d4 {[%emt 00:00:05] [%clk 00:15:24]} d5 {[%emt 00:00:02] [%clk 00:15:20]} 3.
exd5 {[%emt 00:00:09] [%clk 00:15:25]} cxd5 {[%emt 00:00:02] [%clk 00:15:28]} 4.
c4 {[%emt 00:00:01] [%clk 00:15:34]} Nf6 {[%emt 00:00:04] [%clk 00:15:35]} 5.
Nc3 {[%emt 00:00:01] [%clk 00:15:42]} g6 {[%emt 00:00:02] [%clk 00:15:43]} 6.
cxd5 {[%emt 00:00:10] [%clk 00:15:42]} Bg7 {[%emt 00:00:02] [%clk 00:15:51]} 7.
Bb5+ {[%emt 00:00:05] [%clk 00:15:48]} Nbd7 {[%emt 00:00:03] [%clk 00:15:58]} 8.
d6 {[%emt 00:00:04] [%clk 00:15:54]} O-O {[%emt 00:00:15] [%clk 00:15:52]} 9.
dxe7 {[%emt 00:00:07] [%clk 00:15:57]} Qxe7+ {[%emt 00:00:02] [%clk 00:16:00]}
10. Nge2 {[%emt 00:00:15] [%clk 00:15:52]} a6 {[%emt 00:00:02] [%clk 00:16:08]}
11. Bd3 {[%emt 00:00:23] [%clk 00:15:39]} b5 {[%emt 00:00:03] [%clk 00:16:16]}
12. a3 {[%emt 00:00:44] [%clk 00:15:05]} Bb7 {[%emt 00:00:05] [%clk 00:16:20]}
13. O-O {[%emt 00:00:22] [%clk 00:14:52]} Rac8 {[%emt 00:00:18] [%clk 00:16:13]}
14. f3 {[%emt 00:01:28] [%clk 00:13:34]} Nb6 {[%emt 00:00:54] [%clk 00:15:28]}
15. Bg5 {[%emt 00:00:22] [%clk 00:13:21]} Nc4 {[%emt 00:01:09] [%clk 00:14:30]}
16. Bxc4 {[%emt 00:01:29] [%clk 00:12:02]} Rxc4 {[%emt 00:00:03] [%clk
00:14:37]} 17. Qd2 {[%emt 00:00:39] [%clk 00:11:33]} Qd7 {[%emt 00:01:17] [%clk
00:13:30]} 18. Rad1 {[%emt 00:00:34] [%clk 00:11:09]} Re8 {[%emt 00:03:17] [%clk
00:10:23]} 19. Bh4 {[%emt 00:03:18] [%clk 00:08:02]} a5 {[%emt 00:00:36] [%clk
00:09:57]} 20. b3 {[%emt 00:00:54] [%clk 00:07:18]} Rcc8 {[%emt 00:00:18] [%clk
00:09:49]} 21. Bf2 {[%emt 00:00:34] [%clk 00:06:54]} Bf8 {[%emt 00:02:06] [%clk
00:07:54]} 22. Qb2 {[%emt 00:02:14] [%clk 00:04:50]} Qe7 {[%emt 00:02:29] [%clk
00:05:35]} 23. Ng3 {[%emt 00:01:16] [%clk 00:03:45]} Qxa3 {[%emt 00:00:48] [%clk
00:04:56]} 24. Qxa3 {[%emt 00:00:02] [%clk 00:03:53]} Bxa3 {[%emt 00:00:02]
[%clk 00:05:04]} 25. Nxb5 {[%emt 00:00:01] [%clk 00:04:01]} Bb4 {[%emt 00:00:02]
[%clk 00:05:13]} 26. Rc1 {[%emt 00:01:37] [%clk 00:02:34]} Ba6 {[%emt 00:00:19]
[%clk 00:05:05]} 27. Na7 {[%emt 00:02:18] [%clk 00:00:26]} Ra8 {[%emt 00:00:08]
[%clk 00:05:06]} 28. Nc6 {[%emt 00:00:07] [%clk 00:00:29]} Bxf1 {[%emt 00:00:04]
[%clk 00:05:12]} 29. Nxb4 {[%emt 00:00:14] [%clk 00:00:25]} axb4 {[%emt
00:00:18] [%clk 00:05:04]} 30. Nxf1 {[%emt 00:00:08] [%clk 00:00:28]} Ra3 {[%emt
00:00:18] [%clk 00:04:56]} 31. Nd2 {[%emt 00:00:02] [%clk 00:00:35]} Re2 {[%emt
00:00:08] [%clk 00:04:58]} 32. Bh4 {[%emt 00:00:27] [%clk 00:00:18]} Kg7 {[%emt
00:01:31] [%clk 00:03:38]} 33. Nc4 {[%emt 00:00:15] [%clk 00:00:14]} Raa2 {[%emt
00:00:03] [%clk 00:03:44]} 34. Bg3 {[%emt 00:00:09] [%clk 00:00:14]} Nd5 {[%emt
00:00:38] [%clk 00:03:17]} 35. Ne5 {[%emt 00:00:05] [%clk 00:00:19]} Rxg2+
{[%emt 00:00:47] [%clk 00:02:40]} 36. Kh1 {[%emt 00:00:01] [%clk 00:00:28]} Rgd2
{[%emt 00:00:09] [%clk 00:02:41]} 37. Ng4 {[%emt 00:00:13] [%clk 00:00:25]} h5
{[%emt 00:00:06] [%clk 00:02:45]} 38. Be5+ {[%emt 00:00:07] [%clk 00:00:28]} f6
{[%emt 00:00:34] [%clk 00:02:20]} 39. Nxf6 {[%emt 00:00:06] [%clk 00:00:32]}
Nxf6 {[%emt 00:00:03] [%clk 00:02:28]} 40. Rc7+ {[%emt 00:00:01] [%clk
00:00:41]} Kg8 {[%emt 00:00:03] [%clk 00:02:35]} 41. Rc8+ {[%emt 00:00:32] [%clk
00:00:19]} Kf7 {[%emt 00:00:01] [%clk 00:02:44]} 42. Rc7+ {[%emt 00:00:02] [%clk
00:00:27]} Nd7 {[%emt 00:00:12] [%clk 00:02:41]} 43. Rxd7+ {[%emt 00:00:03]
[%clk 00:00:34]} Ke8 {[%emt 00:00:01] [%clk 00:02:50]} 44. Rh7 {[%emt 00:00:17]
[%clk 00:00:26]} Rd1# {[%emt 00:00:02] [%clk 00:02:09]} 0-1

[Site "Europe Echecs"]

[Event "Championnat d'Europe Rapide"]
[Date "2024.12.07"]
[White "Radeva, Viktoria"]
[Black "Schneider, Ilja"]
[WhiteElo "2275"]
[BlackElo "2414"]
[Round "4.40"]
[Result "1-0"]
[TimeControl "900+10"]

1. e4 {[%emt 00:00:32] [%clk 00:14:46]} c6 {[%emt 00:00:01] [%clk 00:15:19]} 2.
d4 {[%emt 00:00:08] [%clk 00:14:47]} d5 {[%emt 00:00:02] [%clk 00:15:28]} 3. Nc3
{[%emt 00:00:02] [%clk 00:14:55]} a6 {[%emt 00:00:01] [%clk 00:15:37]} 4. h3
{[%emt 00:00:32] [%clk 00:14:33]} g6 {[%emt 00:00:24] [%clk 00:15:24]} 5. Nf3
{[%emt 00:00:16] [%clk 00:14:26]} Bg7 {[%emt 00:00:04] [%clk 00:15:30]} 6. e5
{[%emt 00:00:39] [%clk 00:13:56]} Bf5 {[%emt 00:01:51] [%clk 00:13:49]} 7. Be2
{[%emt 00:00:10] [%clk 00:13:56]} b5 {[%emt 00:00:25] [%clk 00:13:35]} 8. a3
{[%emt 00:00:35]} f6 {[%emt 00:00:49] [%clk 00:12:54]} 9. Bf4 {[%emt 00:00:08]
[%clk 00:13:34]} Nd7 {[%emt 00:00:05] [%clk 00:13:00]} 10. Qd2 {[%emt 00:00:57]
[%clk 00:12:46]} fxe5 {[%emt 00:00:21] [%clk 00:12:49]} 11. dxe5 {[%emt
00:00:31] [%clk 00:12:25]} Qc7 {[%emt 00:03:05] [%clk 00:09:53]} 12. e6 {[%emt
00:01:09] [%clk 00:11:25]} Ne5 {[%emt 00:00:02] [%clk 00:10:02]} 13. Ng5 {[%emt
00:00:54] [%clk 00:10:41]} O-O-O {[%emt 00:03:00] [%clk 00:07:11]} 14. Nf7
{[%emt 00:01:07] [%clk 00:09:45]} d4 {[%emt 00:01:56] [%clk 00:05:26]} 15. Na2
{[%emt 00:02:04] [%clk 00:07:50]} Bxe6 {[%emt 00:00:46] [%clk 00:04:49]} 16.
Nxd8 {[%emt 00:00:11] [%clk 00:07:49]} Qxd8 {[%emt 00:00:01] [%clk 00:04:58]}
17. Nb4 {[%emt 00:00:11] [%clk 00:07:48]} Qb6 {[%emt 00:01:57] [%clk 00:03:12]}
18. Bxe5 {[%emt 00:00:51] [%clk 00:07:06]} Bxe5 {[%emt 00:00:01] [%clk
00:03:21]} 19. O-O {[%emt 00:00:27] [%clk 00:06:49]} Nf6 {[%emt 00:00:15] [%clk
00:03:16]} 20. Bf3 {[%emt 00:00:04] [%clk 00:06:55]} c5 {[%emt 00:00:02] [%clk
00:03:24]} 21. Rfe1 {[%emt 00:00:33] [%clk 00:06:31]} Bc7 {[%emt 00:02:49] [%clk
00:00:45]} 22. Nc6 {[%emt 00:00:07] [%clk 00:06:34]} Bd7 {[%emt 00:00:01] [%clk
00:00:55]} 23. Nxe7+ {[%emt 00:00:07] [%clk 00:06:37]} Kb8 {[%emt 00:00:01]
[%clk 00:01:04]} 24. Qg5 {[%emt 00:01:06] [%clk 00:05:40]} Qd6 {[%emt 00:00:04]
[%clk 00:01:11]} 25. g3 {[%emt 00:00:19] [%clk 00:05:30]} Bd8 {[%emt 00:00:46]
[%clk 00:00:36]} 26. Qe5 {[%emt 00:00:46] [%clk 00:04:53]} Qxe5 {[%emt 00:00:11]
[%clk 00:00:35]} 27. Rxe5 {[%emt 00:00:01] [%clk 00:05:02]} Bc7 {[%emt 00:00:08]
[%clk 00:00:37]} 28. Re2 {[%emt 00:00:36] [%clk 00:04:36]} Bxh3 {[%emt 00:00:06]
[%clk 00:00:42]} 29. b4 {[%emt 00:00:12] [%clk 00:04:34]} Bd6 {[%emt 00:00:12]
[%clk 00:00:40]} 30. Nc6+ {[%emt 00:00:05] [%clk 00:04:39]} Kc7 {[%emt 00:00:02]
[%clk 00:00:48]} 31. bxc5 {[%emt 00:00:16] [%clk 00:04:33]} Bxc5 {[%clk
00:00:58]} 32. a4 {[%emt 00:00:09] [%clk 00:04:34]} Bd7 {[%emt 00:00:38] [%clk
00:00:30]} 33. Ne5 {[%emt 00:00:03] [%clk 00:04:41]} Bf5 {[%emt 00:00:04] [%clk
00:00:37]} 34. axb5 {[%emt 00:00:03] [%clk 00:04:48]} axb5 {[%emt 00:00:01]
[%clk 00:00:46]} 35. g4 {[%emt 00:00:15] [%clk 00:04:42]} Bc8 {[%emt 00:00:05]
[%clk 00:00:51]} 36. g5 {[%emt 00:00:14] [%clk 00:04:38]} Ne8 {[%emt 00:00:03]
[%clk 00:00:59]} 37. Nd3 {[%emt 00:00:12] [%clk 00:04:36]} Bb6 {[%emt 00:00:15]
[%clk 00:00:54]} 38. Re7+ {[%emt 00:00:06] [%clk 00:04:40]} Kd6 {[%emt 00:00:23]
[%clk 00:00:41]} 39. Rae1 {[%emt 00:00:04] [%clk 00:04:45]} Bd7 {[%emt 00:00:11]
[%clk 00:00:41]} 40. Kg2 {[%emt 00:00:44] [%clk 00:04:11]} Nc7 {[%emt 00:00:15]
[%clk 00:00:36]} 41. Rf7 {[%emt 00:00:21] [%clk 00:03:58]} Ne6 {[%emt 00:00:15]
[%clk 00:00:33]} 42. Rxd7+ {[%emt 00:00:46] [%clk 00:03:22]} Kxd7 {[%emt
00:00:02] [%clk 00:00:41]} 43. Bg4 {[%clk 00:03:31]} Bd8 {[%emt 00:00:22] [%clk
00:00:29]} 44. Rxe6 {[%emt 00:00:10] [%clk 00:03:31]} Kc7 {[%clk 00:00:39]} 45.
f4 {[%emt 00:00:04] [%clk 00:03:36]} Rf8 {[%emt 00:00:14] [%clk 00:00:36]} 46.
Kg3 {[%emt 00:00:10] [%clk 00:03:36]} Kb8 {[%emt 00:00:09] [%clk 00:00:38]} 47.
Ne5 {[%emt 00:00:07] [%clk 00:03:39]} Kc7 {[%emt 00:00:10] [%clk 00:00:38]} 48.
Rc6+ {[%emt 00:00:04] [%clk 00:03:44]} Kb7 {[%emt 00:00:01] [%clk 00:00:47]} 49.
Bc8+ {[%emt 00:00:09] [%clk 00:03:45]} Ka7 {[%emt 00:00:05] [%clk 00:00:52]} 50.
Ra6+ {[%emt 00:00:02] [%clk 00:03:53]} Kb8 {[%emt 00:00:03] [%clk 00:00:59]} 51.
Nd7+ {[%emt 00:00:02] [%clk 00:04:01]} 1-0

[Site "Europe Echecs"]